fUSD/lending_fUSD_20250415
["ID","MTS","AMOUNT","RATE_DAILY","PERIOD"]
[358126156,1744757444770,-609.8,0.00017999,2]
[358126157,1744757444779,-500.0,0.00017999,2]
[358126158,1744757444788,-198.47,0.00017999,2]
[358126159,1744757444798,-500.0,0.00017999,2]
[358126160,1744757444807,-666.0,0.00017999,2]
[358126162,1744757444817,-500.0,0.00017999,2]
[358126163,1744757444826,-500.0,0.00017999,2]
[358126165,1744757444835,-500.0,0.00017999,2]
[358126167,1744757444844,-500.0,0.00017999,2]
[358126169,1744757444854,-643.14,0.00017999,2]
[358126170,1744757444863,-500.0,0.00017999,2]
[358126171,1744757444872,-500.0,0.00017999,2]
[358126172,1744757444881,-500.0,0.00017999,2]
[358126173,1744757444890,-441.12664673,0.00017999,2]
[358126174,1744757444900,-500.0,0.00017999,2]
[358126175,1744757444911,-500.0,0.00017999,2]
[358126176,1744757444922,-500.0,0.00017999,2]
[358126177,1744757444931,-500.0,0.00017999,2]
[358126178,1744757444940,-561.72,0.00017999,2]
[358126179,1744757444950,-500.0,0.00017999,2]
[358126180,1744757444959,-500.0,0.00017999,2]
[358126181,1744757444968,-500.0,0.00017999,2]
[358126182,1744757444977,-500.0,0.00017999,2]
[358126183,1744757444986,-500.0,0.00017999,2]
[358126184,1744757444995,-500.0,0.00017999,2]
[358126185,1744757445006,-500.0,0.00017999,2]
[358126186,1744757445015,-237.63,0.00017999,2]
[358126187,1744757445024,-500.0,0.00017999,2]
[358126188,1744757445033,-500.0,0.00017999,2]
[358126189,1744757445042,-500.0,0.00017999,2]
[358126190,1744757445052,-500.0,0.00017999,2]
[358126191,1744757445061,-500.0,0.00017999,2]
[358126192,1744757445070,-500.0,0.00017999,2]
[358126193,1744757445079,-500.0,0.00017999,2]
[358126194,1744757445088,-500.0,0.00017999,2]
[358126195,1744757445097,-500.0,0.00017999,2]
[358126196,1744757445106,-500.0,0.00017999,2]
[358126197,1744757445116,-500.0,0.00017999,2]
[358126198,1744757445130,-629.04,0.00017999,2]
[358126199,1744757445139,-1730.46,0.00017999,2]
[358126200,1744757445148,-1730.46,0.00017999,2]
[358126201,1744757445159,-1730.46,0.00017999,2]
[358126202,1744757445168,-1730.46,0.00017999,2]
[358126203,1744757445177,-1730.46,0.00017999,2]
[358126204,1744757445187,-1730.46,0.00017999,2]
[358126205,1744757445197,-1730.46,0.00017999,2]
[358126206,1744757445207,-1730.46,0.00017999,2]
[358126207,1744757445216,-1730.46,0.00017999,2]
[358126208,1744757445225,-1730.46,0.00017999,2]
[358126209,1744757445235,-1730.46,0.00017999,2]
[358126210,1744757445243,-603.27,0.00017999,2]
[358126211,1744757445253,-1730.46,0.00017999,2]
[358126212,1744757445262,-603.27,0.00017999,2]
[358126213,1744757445271,-1730.46,0.00017999,2]
[358126214,1744757445281,-603.27,0.00017999,2]
[358126215,1744757445290,-1730.46,0.00017999,2]
[358126216,1744757445299,-603.27,0.00017999,2]
[358126217,1744757445309,-1730.46,0.00017999,2]
[358126218,1744757445318,-603.27,0.00017999,2]
[358126219,1744757445327,-1730.46,0.00017999,2]
[358126220,1744757445336,-603.27,0.00017999,2]
[358126221,1744757445345,-1730.46,0.00017999,2]
[358126222,1744757445354,-1730.46,0.00017999,2]
[358126223,1744757445363,-603.27,0.00017999,2]
[358126224,1744757445372,-1730.46,0.00017999,2]
[358126225,1744757445382,-603.27,0.00017999,2]
[358126226,1744757445392,-603.27,0.00017999,2]
[358126227,1744757445401,-1730.46,0.00017999,2]
[358126228,1744757445414,-603.27,0.00017999,2]
[358126229,1744757445423,-1730.46,0.00017999,2]
[358126230,1744757445432,-603.27,0.00017999,2]
[358126231,1744757445441,-1730.58598989,0.00017999,2]
[358126232,1744757445450,-603.27,0.00017999,2]
[358126233,1744757445460,-603.27,0.00017999,2]
[358126234,1744757445469,-603.27,0.00017999,2]
[358126235,1744757445478,-603.27,0.00017999,2]
[358126236,1744757445488,-603.27,0.00017999,2]
[358126237,1744757445497,-603.27,0.00017999,2]
[358126238,1744757445507,-603.27,0.00017999,2]
[358126239,1744757445516,-603.27,0.00017999,2]
[358126240,1744757445526,-603.27,0.00017999,2]
[358126241,1744757445535,-603.27,0.00017999,2]
[358126242,1744757445544,-603.45000861,0.00017999,2]
[358126243,1744757445554,-500.0,0.00017999,2]
[358126244,1744757445563,-500.0,0.00017999,2]
[358126245,1744757445572,-500.0,0.00017999,2]
[358126246,1744757445581,-426.125,0.00017999,2]
[358126247,1744757445591,-500.0,0.00017999,2]
[358126248,1744757445600,-500.0,0.00017999,2]
[358126249,1744757445609,-500.0,0.00017999,2]
[358126250,1744757445618,-500.0,0.00017999,2]
[358126251,1744757445627,-531.78818305,0.00017999,2]
[358126252,1744757445637,-500.0,0.00017999,2]
[358126253,1744757445647,-500.0,0.00017999,2]
[358126254,1744757445656,-229.93,0.00017999,2]
[358126255,1744757445666,-500.0,0.00017999,2]
[358126256,1744757445675,-500.0,0.00017999,2]
[358126257,1744757445684,-234.83,0.00017999,2]
[358126258,1744757445694,-256.42862989,0.00017999,2]
[358126259,1744757445703,-497.67971789,0.00017999,2]
[358126260,1744757445714,-251041.98636478,0.00018,2]
[358126261,1744757445723,-820.0,0.00018,2]
[358126262,1744757445733,-11877.75702611,0.00018,2]
[358126269,1744757445915,-838.838,0.00018,2]
[358126274,1744757445950,316.01,0.00016896,2]
[358126276,1744757445967,-9024.15910934,0.00018,2]
[358126284,1744757446049,-426.74811113,0.00018,2]
[358126285,1744757446060,-8386.9786,0.00018,2]
[358126297,1744757448035,-251.184,0.00017884,2]
[358126298,1744757448055,-248.816,0.00017884,2]
[358126299,1744757448065,-500.0,0.00017884,2]
[358126300,1744757448076,-500.0,0.00017986,2]
[358126301,1744757448087,-2925.36569999,0.00018,2]
[358126302,1744757448103,-273.19530558,0.00018,2]
[358126303,1744757448122,-687.11161441,0.00018,2]
[358126304,1744757477676,-218.5959551,0.0001784,2]
[358126305,1744757480211,-286.71038667,0.0001784,2]
[358126306,1744757543277,281.52554837,0.000177,2]
[358126307,1744757543340,985.27444863,0.000177,2]
[358127605,1744757669389,1618.83212107,0.00017109,2]
[358127606,1744757669451,706.07787893,0.00017109,2]
[358128658,1744757788325,867.79,0.0001521,2]
[358128662,1744757788543,867.79,0.00017474,2]
[358129857,1744757894331,250.0,0.00016896,2]
[358130558,1744757943123,157.0573053,0.0001711,2]
[358130559,1744757943211,842.9426947,0.0001711,2]
[358130760,1744757957563,-152.75,0.000269,31]
[358130762,1744757957596,-152.75,0.000269,31]
[358130763,1744757957627,-152.75,0.000269,31]
[358130765,1744757957658,-152.75,0.000269,31]
[358130766,1744757957693,-152.75,0.000269,31]
[358130768,1744757957725,-152.75,0.000269,31]
[358130769,1744757957758,-152.75,0.000269,31]
[358130771,1744757957790,-152.75,0.000269,31]
[358130772,1744757957821,-152.75,0.000269,31]
[358130774,1744757957852,-152.75,0.000269,31]
[358130775,1744757957885,-152.75,0.000269,31]
[358130777,1744757957917,-152.75,0.000269,31]
[358130778,1744757957948,-152.75,0.000269,31]
[358130780,1744757957989,-2000.0,0.00027397,30]
[358130781,1744757958019,-2000.0,0.00027397,30]
[358130782,1744757958044,-2000.0,0.00027397,30]
[358130784,1744757958071,-1212.43394956,0.00027397,30]
[358130785,1744757958101,-666.04,0.00027425,30]
[358130787,1744757958131,-162.24235146,0.00028,60]
[358130791,1744757958395,-209.0,0.0002812,30]
[358130793,1744757958431,-152.75,0.000285,31]
[358130794,1744757958464,-152.75,0.000285,31]
[358130796,1744757958499,-152.75,0.000285,31]
[358130797,1744757958532,-152.75,0.000285,31]
[358130799,1744757958565,-152.75,0.000285,31]
[358130800,1744757958596,-152.75,0.000285,31]
[358130802,1744757958627,-152.75,0.000285,31]
[358130803,1744757958659,-152.75,0.000285,31]
[358130805,1744757958690,-152.75,0.000285,31]
[358130806,1744757958721,-152.75,0.000285,31]
[358130808,1744757958753,-152.75,0.000285,31]
[358130809,1744757958784,-152.75,0.000285,31]
[358130810,1744757958816,-152.75,0.000285,31]
[358130812,1744757958847,-152.75,0.000285,31]
[358130813,1744757958878,-152.75,0.000285,31]
[358130815,1744757958912,-152.75,0.000285,31]
[358130816,1744757958945,-152.75,0.000285,31]
[358130818,1744757958979,-152.75,0.000285,31]
[358130819,1744757959012,-152.75,0.000285,31]
[358130821,1744757959044,-152.75,0.000285,31]
[358130822,1744757959076,-152.75,0.000285,31]
[358130824,1744757959108,-152.75,0.000285,31]
[358130825,1744757959134,-1800.0,0.00029,30]
[358130826,1744757959162,-2961.54600317,0.000299,120]
[358130828,1744757959189,-209.0,0.000299,30]
[358130829,1744757959219,-311.4807666,0.0003,30]
[358130831,1744757959246,-384.1720206,0.0003,120]
[358130832,1744757959271,-202.81936293,0.0003,30]
[358130833,1744757959301,-900.0,0.0003,31]
[358130835,1744757959335,-152.75,0.000302,31]
[358130836,1744757959368,-152.75,0.000302,31]
[358130838,1744757959401,-152.75,0.000302,31]
[358130840,1744757959449,-152.75,0.000302,31]
[358130841,1744757959484,-152.75,0.000302,31]
[358130843,1744757959517,-152.75,0.000302,31]
[358130844,1744757959550,-152.75,0.000302,31]
[358130846,1744757959583,-152.75,0.000302,31]
[358130847,1744757959617,-152.75,0.000302,31]
[358130849,1744757959651,-152.75,0.000302,31]
[358130850,1744757959691,-152.75,0.000302,31]
[358130852,1744757959726,-152.75,0.000302,31]
[358130853,1744757959760,-152.75,0.000302,31]
[358130855,1744757959794,-152.75,0.000302,31]
[358130856,1744757959827,-152.75,0.000302,31]
[358130857,1744757959861,-152.75,0.000302,31]
[358130859,1744757959896,-152.75,0.000302,31]
[358130860,1744757959930,-152.75,0.000302,31]
[358130862,1744757959965,-152.75,0.000302,31]
[358130863,1744757959999,-152.75,0.000302,31]
[358130865,1744757960033,-152.75,0.000302,31]
[358130866,1744757960067,-152.75,0.000302,31]
[358130868,1744757960093,-548.0,0.00030613,30]
[358130869,1744757960119,-1000.0,0.000309,30]
[358130870,1744757960146,-900.0,0.00031,32]
[358130872,1744757960180,-209.0,0.0003168,30]
[358130873,1744757960214,-152.75,0.000318,31]
[358130875,1744757960247,-152.75,0.000318,31]
[358130876,1744757960282,-152.75,0.000318,31]
[358130878,1744757960321,-152.75,0.000318,31]
[358130879,1744757960353,-152.75,0.000318,31]
[358130881,1744757960386,-152.75,0.000318,31]
[358130882,1744757960419,-152.75,0.000318,31]
[358130884,1744757960451,-152.75,0.000318,31]
[358130885,1744757960482,-152.75,0.000318,31]
[358130887,1744757960513,-152.75,0.000318,31]
[358130888,1744757960546,-152.75,0.000318,31]
[358130890,1744757960577,-152.75,0.000318,31]
[358130891,1744757960609,-152.75,0.000318,31]
[358130893,1744757960645,-152.75,0.000318,31]
[358130894,1744757960678,-152.75,0.000318,31]
[358130896,1744757960711,-152.75,0.000318,31]
[358130897,1744757960742,-152.75,0.000318,31]
[358130899,1744757960775,-152.75,0.000318,31]
[358130900,1744757960806,-152.75,0.000318,31]
[358130902,1744757960838,-152.75,0.000318,31]
[358130903,1744757960871,-152.75,0.000318,31]
[358130905,1744757960904,-152.75,0.000318,31]
[358130906,1744757960931,-423.05181022,0.00032,120]
[358130907,1744757960958,-260.0,0.00032,120]
[358130909,1744757960987,-900.0,0.00032,33]
[358130910,1744757961014,-666.04,0.00032315,30]
[358130911,1744757961047,-412.68157109,0.00032876,120]
[358130913,1744757961074,-304.28824057,0.00032876,30]
[358130914,1744757961099,-300.0,0.00032877,30]
[358130916,1744757961124,-2000.0,0.00032877,30]
[358130917,1744757961149,-2000.0,0.00032877,30]
[358130918,1744757961175,-2000.0,0.00032877,30]
[358130920,1744757961200,-2000.0,0.00032877,30]
[358130921,1744757961225,-2000.0,0.00032877,30]
[358130922,1744757961250,-2000.0,0.00032877,30]
[358130924,1744757961274,-2000.0,0.00032877,30]
[358130925,1744757961306,-2000.0,0.00032877,30]
[358130927,1744757961330,-2000.0,0.00032877,30]
[358130928,1744757961354,-2000.0,0.00032877,30]
[358130929,1744757961380,-2000.0,0.00032877,30]
[358130931,1744757961404,-2000.0,0.00032877,30]
[358130932,1744757961429,-1509.639094,0.00032877,30]
[358130934,1744757961454,-1500.0,0.00032877,120]
[358130935,1744757961479,-700.0,0.00032946,60]
[358130936,1744757961505,-900.0,0.00033,34]
[358130938,1744757961529,-167.455306,0.0003312,30]
[358130939,1744757961555,-209.0,0.0003345,30]
[358130943,1744757961760,-2000.0,0.000335,120]
[358130945,1744757961785,-519.457105,0.000335,120]
[358130946,1744757961815,-152.75,0.000335,31]
[358130948,1744757961842,-152.75,0.000335,31]
[358130949,1744757961871,-152.75,0.000335,31]
[358130950,1744757961900,-152.75,0.000335,31]
[358130952,1744757961930,-152.75,0.000335,31]
[358130953,1744757961958,-152.75,0.000335,31]
[358130955,1744757961987,-152.75,0.000335,31]
[358130956,1744757962016,-152.75,0.000335,31]
[358130958,1744757962047,-152.75,0.000335,31]
[358130959,1744757962077,-152.75,0.000335,31]
[358130961,1744757962106,-152.75,0.000335,31]
[358130962,1744757962130,-768.0,0.00033674,30]
[358130963,1744757962156,-167.455306,0.0003396,120]
[358130965,1744757962181,-200.0,0.00034,120]
[358130966,1744757962206,-700.0,0.00034042,60]
[358130968,1744757962232,-168.26923274,0.00035,120]
[358130969,1744757962256,-2000.0,0.00035,120]
[358130970,1744757962281,-21092.92316815,0.0003511,30]
[358130972,1744757962310,-700.0,0.00035138,60]
[358130973,1744757962335,-209.0,0.0003523,30]
[358130975,1744757962360,-2588.99,0.000358,30]
[358130976,1744757962388,-300.0,0.00036,120]
[358130977,1744757962412,-700.0,0.00036234,60]
[358130979,1744757962436,-2062.595424,0.000365,120]
[358130980,1744757962462,-2000.0,0.00036986,120]
[358130982,1744757962486,-2000.0,0.00036986,120]
[358130983,1744757962510,-2000.0,0.00036986,120]
[358130984,1744757962534,-2000.0,0.00036986,120]
[358130986,1744757962558,-2000.0,0.00036986,120]
[358130987,1744757962582,-2000.0,0.00036986,120]
[358130989,1744757962607,-956.45842544,0.00036986,120]
[358130990,1744757962631,-2000.0,0.00036986,120]
[358130992,1744757962656,-300.0,0.00036986,30]
[358130993,1744757962681,-1000.0,0.00037,45]
[358130994,1744757962707,-209.0,0.0003701,30]
[358130996,1744757962733,-653.0,0.00037042,30]
[358130997,1744757962759,-5710.4859719,0.000372,120]
[358130998,1744757962785,-5710.48597186,0.000372,120]
[358131000,1744757962810,-5710.48597186,0.000372,120]
[358131001,1744757962835,-5710.48597186,0.000372,120]
[358131003,1744757962863,-5710.48597186,0.000372,120]
[358131004,1744757962890,-666.04,0.00037205,30]
[358131005,1744757962917,-700.0,0.0003733,60]
[358131007,1744757962942,-181.01493972,0.00037999,120]
[358131008,1744757962967,-533.00087539,0.00038,120]
[358131009,1744757962992,-547.58388843,0.00038,120]
[358131011,1744757963017,-1000.0,0.00038,45]
[358131012,1744757963044,-300.0,0.00038,120]
[358131014,1744757963070,-573.29276832,0.000384,33]
[358131015,1744757963097,-228.05138355,0.00038426,60]
[358131016,1744757963123,-209.0,0.0003879,30]
[358131018,1744757963149,-504.0,0.00038904,30]
[358131019,1744757963174,-2000.0,0.00039,30]
[358131020,1744757963198,-159.60664866,0.00039,120]
[358131022,1744757963225,-2890.88031309,0.00039,120]
[358131023,1744757963249,-362.51470443,0.00039,120]
[358131024,1744757963274,-1000.0,0.00039,45]
[358131025,1744757963301,-208.0,0.0003958,53]
[358131026,1744757963326,-953.44526999,0.0003965,120]
[358131027,1744757963351,-1000.0,0.00039894,31]
[358131028,1744757963376,-3095.74185749,0.0004,30]
[358131029,1744757963402,-533.00087539,0.0004,120]
[358131030,1744757963427,-547.58388843,0.0004,120]
[358131032,1744757963451,-785.76730248,0.0004,120]
[358131033,1744757963475,-1000.0,0.0004,30]
[358131035,1744757963500,-400.0,0.0004,120]
[358131036,1744757963524,-1000.0,0.0004,120]
[358131037,1744757963549,-1175.0,0.0004,120]
[358131039,1744757963573,-775.0,0.0004,120]
[358131040,1744757963597,-3500.0,0.0004,45]
[358131042,1744757963622,-21649.60285479,0.0004,30]
[358131043,1744757963646,-229.52183281,0.0004,60]
[358131044,1744757963670,-60703.70090272,0.0004,120]
[358131046,1744757963694,-1000.0,0.00040424,30]
[358131047,1744757963719,-209.0,0.0004057,30]
[358131048,1744757963744,-158.52943974,0.000408,120]
[358131050,1744757963768,-1908.82933,0.00040888,30]
[358131051,1744757963793,-1978.65,0.00040951,59]
[358131053,1744757963817,-1000.0,0.00041,120]
[358131054,1744757963841,-1908.82933,0.00041088,30]
[358131055,1744757963869,-500.0,0.00041095,120]
[358131057,1744757963896,-500.0,0.00041095,120]
[358131058,1744757963921,-500.0,0.00041095,120]
[358131060,1744757963946,-500.0,0.00041095,120]
[358131061,1744757963972,-197.4849042,0.00041095,120]
[358131062,1744757963999,-350.0,0.00041095,120]
[358131064,1744757964024,-350.0,0.00041095,120]
[358131065,1744757964049,-350.0,0.00041095,120]
[358131066,1744757964074,-350.0,0.00041095,120]
[358131068,1744757964098,-350.0,0.00041095,120]
[358131069,1744757964124,-350.0,0.00041095,120]
[358131071,1744757964148,-350.0,0.00041095,120]
[358131072,1744757964172,-350.0,0.00041095,120]
[358131073,1744757964196,-254.93193844,0.00041095,120]
[358131075,1744757964220,-797.27,0.00041095,120]
[358131076,1744757964244,-748.58,0.00041095,30]
[358131077,1744757964268,-748.58,0.00041095,30]
[358131079,1744757964294,-748.58,0.00041095,30]
[358131080,1744757964319,-748.58,0.00041095,30]
[358131081,1744757964345,-748.58,0.00041095,30]
[358131083,1744757964370,-748.58,0.00041095,30]
[358131084,1744757964396,-748.58,0.00041095,30]
[358131088,1744757964565,-748.58,0.00041095,30]
[358131089,1744757964591,-748.58,0.00041095,30]
[358131091,1744757964615,-748.58,0.00041095,30]
[358131092,1744757964641,-748.58,0.00041095,30]
[358131093,1744757964667,-748.58,0.00041095,30]
[358131095,1744757964693,-748.58,0.00041095,30]
[358131096,1744757964718,-748.58,0.00041095,30]
[358131097,1744757964742,-748.58,0.00041095,30]
[358131099,1744757964768,-748.58,0.00041095,30]
[358131100,1744757964793,-748.58,0.00041095,30]
[358131102,1744757964819,-748.58,0.00041095,30]
[358131103,1744757964845,-748.58,0.00041095,30]
[358131104,1744757964872,-748.58,0.00041095,30]
[358131106,1744757964899,-748.58,0.00041095,30]
[358131107,1744757964925,-748.58,0.00041095,30]
[358131109,1744757964953,-748.58,0.00041095,30]
[358131110,1744757964978,-748.5821037,0.00041095,30]
[358131111,1744757965005,-889.69,0.00041096,30]
[358131113,1744757965031,-300.0,0.00041096,30]
[358131114,1744757965057,-1908.82933,0.00041288,30]
[358131116,1744757965083,-1908.82933,0.00041488,30]
[358131117,1744757965107,-300.0,0.00041568,30]
[358131118,1744757965133,-1908.82933,0.00041688,30]
[358131120,1744757965158,-2502.14235031,0.000418,60]
[358131121,1744757965183,-1908.82933,0.00041888,30]
[358131122,1744757965208,-1183.0,0.0004197,120]
[358131124,1744757965234,-328.0,0.0004197,120]
[358131125,1744757965259,-1183.0,0.0004197,120]
[358131127,1744757965286,-328.0,0.0004197,120]
[358131128,1744757965312,-1183.0,0.0004198,120]
[358131129,1744757965338,-328.0,0.0004198,120]
[358131131,1744757965364,-1183.0,0.0004198,120]
[358131132,1744757965389,-328.0,0.0004198,120]
[358131133,1744757965414,-328.0,0.0004198,120]
[358131135,1744757965440,-336.03,0.0004198,120]
[358131136,1744757965465,-1183.0,0.0004198,120]
[358131138,1744757965490,-1186.02,0.0004198,120]
[358131139,1744757965514,-1183.0,0.0004199,120]
[358131140,1744757965539,-328.0,0.0004199,120]
[358131142,1744757965564,-1183.0,0.0004199,120]
[358131143,1744757965588,-328.0,0.0004199,120]
[358131144,1744757965613,-1183.0,0.0004199,120]
[358131146,1744757965638,-328.0,0.0004199,120]
[358131147,1744757965664,-328.0,0.0004199,120]
[358131149,1744757965689,-1183.0,0.0004199,120]
[358131150,1744757965714,-753.96389895,0.0004199,120]
[358131151,1744757965739,-181.63,0.0004199,120]
[358131153,1744757965764,-1083.13096978,0.00042,120]
[358131154,1744757965788,-1322.88635333,0.00042,60]
[358131156,1744757965814,-359.54515678,0.00042,120]
[358131157,1744757965839,-400.0,0.00042,120]
[358131158,1744757965864,-150.0,0.00042053,120]
[358131160,1744757965889,-1908.82933,0.00042088,30]
[358131161,1744757965915,-666.04,0.00042096,30]
[358131162,1744757965941,-1908.82933,0.00042288,30]
[358131164,1744757965965,-4000.0,0.00042324,31]
[358131165,1744757965990,-150.0,0.00042336,120]
[358131167,1744757966015,-209.0,0.0004234,30]
[358131168,1744757966042,-797.27,0.00042465,120]
[358131169,1744757966066,-1908.82933,0.00042488,30]
[358131171,1744757966091,-229.010081,0.000425,120]
[358131172,1744757966117,-150.0,0.00042579,120]
[358131174,1744757966143,-1908.82933,0.00042688,30]
[358131175,1744757966170,-150.0,0.00042818,120]
[358131176,1744757966196,-150.0,0.00042882,120]
[358131178,1744757966222,-1908.82933,0.00042888,30]
[358131179,1744757966248,-748.13013904,0.00042998,120]
[358131180,1744757966275,-87671.79,0.00043,60]
[358131182,1744757966306,-1066.00175078,0.00043,120]
[358131183,1744757966333,-1095.16777686,0.00043,120]
[358131184,1744757966359,-2000.0,0.00043,30]
[358131186,1744757966385,-157.50642444,0.00043,120]
[358131187,1744757966411,-238.0,0.00043,30]
[358131189,1744757966437,-1908.82933,0.00043088,30]
[358131190,1744757966465,-150.0,0.00043094,120]
[358131191,1744757966492,-150.0,0.00043265,120]
[358131193,1744757966518,-560.0,0.00043288,30]
[358131194,1744757966544,-560.0,0.00043288,30]
[358131196,1744757966568,-560.0,0.00043288,30]
[358131197,1744757966592,-560.0,0.00043288,30]
[358131198,1744757966616,-560.0,0.00043288,30]
[358131200,1744757966642,-560.0,0.00043288,30]
[358131201,1744757966667,-560.0,0.00043288,30]
[358131202,1744757966692,-560.0,0.00043288,30]
[358131204,1744757966717,-560.0,0.00043288,30]
[358131205,1744757966740,-560.0,0.00043288,30]
[358131206,1744757966765,-560.0,0.00043288,30]
[358131208,1744757966790,-560.0,0.00043288,30]
[358131209,1744757966814,-560.0,0.00043288,30]
[358131211,1744757966838,-423.0,0.00043288,30]
[358131212,1744757966863,-423.0,0.00043288,30]
[358131213,1744757966888,-423.0,0.00043288,30]
[358131215,1744757966912,-423.0,0.00043288,30]
[358131216,1744757966936,-423.0,0.00043288,30]
[358131217,1744757966960,-423.0,0.00043288,30]
[358131219,1744757966984,-423.0,0.00043288,30]
[358131220,1744757967007,-423.0,0.00043288,30]
[358131222,1744757967032,-423.0,0.00043288,30]
[358131223,1744757967058,-423.0,0.00043288,30]
[358131224,1744757967083,-423.0,0.00043288,30]
[358131226,1744757967107,-423.0,0.00043288,30]
[358131227,1744757967133,-423.0,0.00043288,30]
[358131228,1744757967157,-560.0,0.00043288,30]
[358131230,1744757967182,-560.0,0.00043288,30]
[358131233,1744757967347,-560.0,0.00043288,30]
[358131235,1744757967372,-560.0,0.00043288,30]
[358131236,1744757967400,-560.0,0.00043288,30]
[358131238,1744757967425,-560.0,0.00043288,30]
[358131239,1744757967450,-560.0,0.00043288,30]
[358131240,1744757967478,-560.0,0.00043288,30]
[358131242,1744757967504,-560.0,0.00043288,30]
[358131243,1744757967529,-560.0,0.00043288,30]
[358131245,1744757967554,-560.0,0.00043288,30]
[358131246,1744757967577,-560.0,0.00043288,30]
[358131248,1744757967601,-560.0,0.00043288,30]
[358131249,1744757967624,-560.0,0.00043288,30]
[358131250,1744757967648,-423.0,0.00043288,30]
[358131252,1744757967672,-423.0,0.00043288,30]
[358131253,1744757967696,-423.0,0.00043288,30]
[358131255,1744757967720,-423.0,0.00043288,30]
[358131256,1744757967744,-423.0,0.00043288,30]
[358131257,1744757967768,-423.0,0.00043288,30]
[358131259,1744757967793,-423.0,0.00043288,30]
[358131260,1744757967817,-423.0,0.00043288,30]
[358131261,1744757967841,-423.0,0.00043288,30]
[358131263,1744757967865,-423.0,0.00043288,30]
[358131264,1744757967890,-423.0,0.00043288,30]
[358131266,1744757967914,-423.0,0.00043288,30]
[358131267,1744757967940,-423.0,0.00043288,30]
[358131268,1744757967963,-423.0,0.00043288,30]
[358131270,1744757967988,-560.0,0.00043288,30]
[358131271,1744757968013,-560.0,0.00043288,30]
[358131273,1744757968038,-560.0,0.00043288,30]
[358131274,1744757968062,-560.0,0.00043288,30]
[358131275,1744757968087,-560.0,0.00043288,30]
[358131277,1744757968111,-560.0,0.00043288,30]
[358131278,1744757968136,-560.0,0.00043288,30]
[358131280,1744757968160,-560.0,0.00043288,30]
[358131281,1744757968184,-560.0,0.00043288,30]
[358131282,1744757968209,-560.0,0.00043288,30]
[358131284,1744757968233,-560.0,0.00043288,30]
[358131285,1744757968258,-560.0,0.00043288,30]
[358131287,1744757968283,-560.0,0.00043288,30]
[358131288,1744757968309,-560.0,0.00043288,30]
[358131289,1744757968333,-423.0,0.00043288,30]
[358131291,1744757968357,-423.0,0.00043288,30]
[358131292,1744757968382,-423.0,0.00043288,30]
[358131294,1744757968407,-423.0,0.00043288,30]